[Event "Titled Tuesday Blitz July 4 Early 2023"]
[White "Przybylski, Wojciech"]
[Black "Zacurdajev, Dmitry"]
[WhiteFideId "1117599"]
[BlackFideId "4196309"]
[WhiteElo "2571"]
[BlackElo "2435"]
[Result "1-0"]
[Round "5"]
[TimeControl "180+2"]
[Date "2023.07.04"]
[WhiteClock "0:00:06"]
[BlackClock "0:00:12"]
[Board "119"]

1. e4 {[%clk 0:02:56]}  c6 {[%clk 0:03:00]} 2. d4 {[%clk 0:02:55]}  d5 {[%clk 0:03:01]} 3. Nc3 {[%clk 0:02:54]}  dxe4 {[%clk 0:03:01]} 4. Nxe4 {[%clk 0:02:55]}  Nf6 {[%clk 0:03:02]} 5. Nc3 {[%clk 0:02:55]}  Bg4 {[%clk 0:02:59]} 6. Qd3 {[%clk 0:02:49]}  e6 {[%clk 0:02:57]} 7. Bf4 {[%clk 0:02:47]}  Bd6 {[%clk 0:02:49]} 8. Bxd6 {[%clk 0:02:45]}  Qxd6 {[%clk 0:02:50]} 9. h3 {[%clk 0:02:44]}  Bf5 {[%clk 0:02:50]} 10. Qd2 {[%clk 0:02:43]}  Na6 {[%clk 0:02:48]} 11. a3 {[%clk 0:02:42]}  Nc7 {[%clk 0:02:47]} 12. Nge2 {[%clk 0:02:40]}  O-O-O {[%clk 0:02:40]} 13. O-O-O {[%clk 0:02:39]}  e5 {[%clk 0:02:28]} 14. Qg5 {[%clk 0:02:32]}  g6 {[%clk 0:02:17]} 15. g4 {[%clk 0:02:29]}  h6 {[%clk 0:02:15]} 16. Qe3 {[%clk 0:02:28]}  exd4 {[%clk 0:02:06]} 17. Rxd4 {[%clk 0:02:26]}  Ncd5 {[%clk 0:02:04]} 18. Nxd5 {[%clk 0:01:04]}  Nxd5 {[%clk 0:02:04]} 19. Qd2 {[%clk 0:01:04]}  Be6 {[%clk 0:01:25]} 20. c4 {[%clk 0:01:03]}  Qc5 {[%clk 0:01:24]} 21. b4 {[%clk 0:01:03]}  Nxb4 {[%clk 0:01:24]} 22. axb4 {[%clk 0:00:59]}  Qe5 {[%clk 0:01:16]} 23. f4 {[%clk 0:00:51]}  Qf6 {[%clk 0:01:06]} 24. Qc3 {[%clk 0:00:21]}  Qe7 {[%clk 0:00:45]} 25. Bg2 {[%clk 0:00:21]}  h5 {[%clk 0:00:39]} 26. g5 {[%clk 0:00:20]}  Bf5 {[%clk 0:00:37]} 27. Bf3 {[%clk 0:00:20]}  Rhe8 {[%clk 0:00:29]} 28. Rhd1 {[%clk 0:00:18]}  Rxd4 {[%clk 0:00:26]} 29. Rxd4 {[%clk 0:00:15]}  Bxh3 {[%clk 0:00:27]} 30. c5 {[%clk 0:00:14]}  Qe6 {[%clk 0:00:23]} 31. Re4 {[%clk 0:00:13]}  Qd7 {[%clk 0:00:21]} 32. Rxe8+ {[%clk 0:00:13]}  Qxe8 {[%clk 0:00:22]} 33. Qe5 {[%clk 0:00:13]}  Be6 {[%clk 0:00:21]} 34. Nd4 {[%clk 0:00:13]}  Qd7 {[%clk 0:00:15]} 35. Nxe6 {[%clk 0:00:12]}  fxe6 {[%clk 0:00:16]} 36. Be4 {[%clk 0:00:12]}  b6 {[%clk 0:00:11]} 37. Qd6 {[%clk 0:00:11]}  bxc5 {[%clk 0:00:11]} 38. Qxd7+ {[%clk 0:00:09]}  Kxd7 {[%clk 0:00:12]} 39. bxc5 {[%clk 0:00:10]}  h4 {[%clk 0:00:12]} 40. Kd2 {[%clk 0:00:08]}  e5 {[%clk 0:00:12]} 41. f5 {[%clk 0:00:07]}  gxf5 {[%clk 0:00:13]} 42. Bxf5+ {[%clk 0:00:07]}  Ke7 {[%clk 0:00:13]} 43. Be4 {[%clk 0:00:07]}  Ke6 {[%clk 0:00:12]} 44. Kc3 {[%clk 0:00:07]}  a5 {[%clk 0:00:11]} 45. Kc4 {[%clk 0:00:07]}  h3 {[%clk 0:00:12]} 46. Bxc6 {[%clk 0:00:06]}  Kf5 {[%clk 0:00:11]} 47. Bh1 {[%clk 0:00:05]}  Kxg5 {[%clk 0:00:11]} 48. c6 {[%clk 0:00:05]}  Kf6 {[%clk 0:00:12]} 49. c7 {[%clk 0:00:06]}  a4 {[%clk 0:00:11]} 50. c8=Q {[%clk 0:00:06]}  a3 {[%clk 0:00:12]} 51. Qd8+ {[%clk 0:00:06]} 1-0


[Site "https://www.chess.com"]

[Event "Titled Tuesday Blitz July 4 Early 2023"]
[White "Herman, Daniel"]
[Black "Materia, Marco"]
[WhiteFideId "30935008"]
[BlackFideId "45150451"]
[WhiteElo "2434"]
[BlackElo "2562"]
[Result "0-1"]
[Round "5"]
[TimeControl "180+2"]
[Date "2023.07.04"]
[WhiteClock "0:00:28"]
[BlackClock "0:02:16"]
[Board "121"]

1. e4 {[%clk 0:03:00]}  c5 {[%clk 0:02:59]} 2. Nf3 {[%clk 0:03:01]}  e6 {[%clk 0:03:00]} 3. d4 {[%clk 0:02:59]}  cxd4 {[%clk 0:03:00]} 4. Nxd4 {[%clk 0:03:00]}  Nc6 {[%clk 0:03:01]} 5. Nc3 {[%clk 0:02:57]}  Qc7 {[%clk 0:03:01]} 6. Be3 {[%clk 0:02:54]}  a6 {[%clk 0:03:00]} 7. Qf3 {[%clk 0:02:53]}  Ne5 {[%clk 0:03:00]} 8. Qg3 {[%clk 0:02:51]}  b5 {[%clk 0:03:00]} 9. f4 {[%clk 0:02:37]}  Nc4 {[%clk 0:02:59]} 10. Bxc4 {[%clk 0:02:36]}  Qxc4 {[%clk 0:03:00]} 11. f5 {[%clk 0:02:16]}  Nf6 {[%clk 0:02:50]} 12. e5 {[%clk 0:02:05]}  Nd5 {[%clk 0:02:49]} 13. Nxd5 {[%clk 0:02:04]}  Qxd5 {[%clk 0:02:50]} 14. O-O-O {[%clk 0:02:02]}  Qxa2 {[%clk 0:02:49]} 15. Nb3 {[%clk 0:01:46]}  Bb7 {[%clk 0:02:36]} 16. fxe6 {[%clk 0:01:44]}  dxe6 {[%clk 0:02:36]} 17. Bb6 {[%clk 0:01:28]}  Rc8 {[%clk 0:02:31]} 18. Qd3 {[%clk 0:01:26]}  Bd5 {[%clk 0:02:31]} 19. Kd2 {[%clk 0:00:58]}  Qxb2 {[%clk 0:02:28]} 20. Bd4 {[%clk 0:00:58]}  Bb4+ {[%clk 0:02:26]} 21. Ke3 {[%clk 0:00:53]}  Qxc2 {[%clk 0:02:25]} 22. Rc1 {[%clk 0:00:44]}  Qxd3+ {[%clk 0:02:25]} 23. Kxd3 {[%clk 0:00:45]}  O-O {[%clk 0:02:17]} 24. Nc5 {[%clk 0:00:39]}  Bc4+ {[%clk 0:02:16]} 25. Rxc4 {[%clk 0:00:37]}  bxc4+ {[%clk 0:02:16]} 26. Kxc4 {[%clk 0:00:38]}  Bxc5 {[%clk 0:02:16]} 27. Bxc5 {[%clk 0:00:39]}  Rfd8 {[%clk 0:02:15]} 28. Kb4 {[%clk 0:00:33]}  a5+ {[%clk 0:02:15]} 29. Kb5 {[%clk 0:00:31]}  Rd5 {[%clk 0:02:15]} 30. Rc1 {[%clk 0:00:28]}  Rxe5 {[%clk 0:02:16]} 0-1


[Site "https://www.chess.com"]

[Event "Titled Tuesday Blitz July 4 Early 2023"]
[White "Estrada Nieto, Julian"]
[Black "Grossboss19"]
[WhiteFideId "5101018"]
[WhiteElo "2554"]
[BlackElo "2422"]
[Result "1-0"]
[Round "5"]
[TimeControl "180+2"]
[Date "2023.07.04"]
[WhiteClock "0:00:06"]
[BlackClock "0:00:20"]
[Board "125"]

1. e4 {[%clk 0:03:00]}  e6 {[%clk 0:02:54]} 2. d4 {[%clk 0:03:00]}  d5 {[%clk 0:02:51]} 3. Nd2 {[%clk 0:03:00]}  Nc6 {[%clk 0:02:46]} 4. Ngf3 {[%clk 0:02:59]}  dxe4 {[%clk 0:02:44]} 5. Nxe4 {[%clk 0:02:58]}  Be7 {[%clk 0:02:44]} 6. Bd3 {[%clk 0:02:52]}  Nf6 {[%clk 0:02:41]} 7. O-O {[%clk 0:02:45]}  h6 {[%clk 0:02:39]} 8. c3 {[%clk 0:02:42]}  Nxe4 {[%clk 0:02:37]} 9. Bxe4 {[%clk 0:02:42]}  O-O {[%clk 0:02:37]} 10. Qe2 {[%clk 0:02:38]}  Bd7 {[%clk 0:02:27]} 11. Bf4 {[%clk 0:02:25]}  Bd6 {[%clk 0:02:25]} 12. Ne5 {[%clk 0:02:20]}  Bxe5 {[%clk 0:02:17]} 13. dxe5 {[%clk 0:02:17]}  Qc8 {[%clk 0:02:16]} 14. Rad1 {[%clk 0:02:13]}  Ne7 {[%clk 0:02:15]} 15. Bc2 {[%clk 0:02:00]}  Bc6 {[%clk 0:02:12]} 16. Bg3 {[%clk 0:01:53]}  Nf5 {[%clk 0:02:08]} 17. Rd2 {[%clk 0:01:41]}  Rd8 {[%clk 0:02:06]} 18. Rfd1 {[%clk 0:01:40]}  Rxd2 {[%clk 0:02:04]} 19. Qxd2 {[%clk 0:01:40]}  Qf8 {[%clk 0:02:04]} 20. f3 {[%clk 0:01:24]}  Qc5+ {[%clk 0:01:49]} 21. Qf2 {[%clk 0:01:18]}  Qxf2+ {[%clk 0:01:45]} 22. Bxf2 {[%clk 0:01:15]}  Kf8 {[%clk 0:01:43]} 23. b4 {[%clk 0:01:01]}  b6 {[%clk 0:01:39]} 24. a4 {[%clk 0:00:57]}  Ke8 {[%clk 0:01:38]} 25. b5 {[%clk 0:00:48]}  Bb7 {[%clk 0:01:36]} 26. Kf1 {[%clk 0:00:42]}  Rd8 {[%clk 0:01:32]} 27. Rxd8+ {[%clk 0:00:39]}  Kxd8 {[%clk 0:01:32]} 28. Ke2 {[%clk 0:00:37]}  a6 {[%clk 0:01:31]} 29. Bd3 {[%clk 0:00:36]}  axb5 {[%clk 0:01:31]} 30. axb5 {[%clk 0:00:35]}  Kd7 {[%clk 0:01:22]} 31. g4 {[%clk 0:00:28]}  Ne7 {[%clk 0:01:21]} 32. c4 {[%clk 0:00:27]}  Ng6 {[%clk 0:01:17]} 33. Bg3 {[%clk 0:00:26]}  c6 {[%clk 0:01:15]} 34. bxc6+ {[%clk 0:00:25]}  Bxc6 {[%clk 0:01:12]} 35. h4 {[%clk 0:00:26]}  Kc7 {[%clk 0:01:08]} 36. Ke3 {[%clk 0:00:26]}  Nf8 {[%clk 0:01:06]} 37. h5 {[%clk 0:00:24]}  Nd7 {[%clk 0:01:06]} 38. f4 {[%clk 0:00:24]}  Nc5 {[%clk 0:01:05]} 39. Be2 {[%clk 0:00:24]}  Ne4 {[%clk 0:00:57]} 40. Bh4 {[%clk 0:00:24]}  Nc3 {[%clk 0:00:52]} 41. Bd3 {[%clk 0:00:18]}  Kd7 {[%clk 0:00:50]} 42. f5 {[%clk 0:00:17]}  Na4 {[%clk 0:00:46]} 43. f6 {[%clk 0:00:11]}  gxf6 {[%clk 0:00:42]} 44. Bxf6 {[%clk 0:00:11]}  Nb2 {[%clk 0:00:41]} 45. Be2 {[%clk 0:00:10]}  Ba4 {[%clk 0:00:37]} 46. Bg7 {[%clk 0:00:09]}  Bb3 {[%clk 0:00:38]} 47. Bxh6 {[%clk 0:00:08]}  Nxc4+ {[%clk 0:00:38]} 48. Kf4 {[%clk 0:00:08]}  Ke7 {[%clk 0:00:35]} 49. Bg5+ {[%clk 0:00:08]}  Kf8 {[%clk 0:00:35]} 50. h6 {[%clk 0:00:08]}  b5 {[%clk 0:00:32]} 51. Bd3 {[%clk 0:00:08]}  Nb2 {[%clk 0:00:27]} 52. Be4 {[%clk 0:00:06]}  Bd5 {[%clk 0:00:25]} 53. h7 {[%clk 0:00:06]}  Kg7 {[%clk 0:00:20]} 54. Bf6+ {[%clk 0:00:06]} 1-0


[Site "https://www.chess.com"]

[Event "Titled Tuesday Blitz July 4 Early 2023"]
[White "Duarte, Leonardo"]
[Black "WindWhistler11"]
[WhiteFideId "110582"]
[WhiteElo "2412"]
[BlackElo "2546"]
[Result "0-1"]
[Round "5"]
[TimeControl "180+2"]
[Date "2023.07.04"]
[WhiteClock "0:00:00"]
[BlackClock "0:00:05"]
[Board "128"]

1. e4 {[%clk 0:03:00]}  e6 {[%clk 0:02:58]} 2. d4 {[%clk 0:02:55]}  d5 {[%clk 0:02:57]} 3. Nc3 {[%clk 0:02:48]}  Bb4 {[%clk 0:02:54]} 4. e5 {[%clk 0:02:44]}  Ne7 {[%clk 0:02:52]} 5. h4 {[%clk 0:02:41]}  c5 {[%clk 0:02:51]} 6. a3 {[%clk 0:02:39]}  Bxc3+ {[%clk 0:02:46]} 7. bxc3 {[%clk 0:02:40]}  Qa5 {[%clk 0:02:46]} 8. Bd2 {[%clk 0:02:39]}  Qa4 {[%clk 0:02:38]} 9. h5 {[%clk 0:02:36]}  h6 {[%clk 0:02:37]} 10. Qg4 {[%clk 0:02:30]}  Rg8 {[%clk 0:02:22]} 11. Bd3 {[%clk 0:02:24]}  Nf5 {[%clk 0:02:20]} 12. Ne2 {[%clk 0:01:56]}  c4 {[%clk 0:02:08]} 13. Bxf5 {[%clk 0:01:50]}  exf5 {[%clk 0:02:08]} 14. Qf3 {[%clk 0:01:42]}  Be6 {[%clk 0:01:44]} 15. Nf4 {[%clk 0:01:41]}  Qxc2 {[%clk 0:00:51]} 16. Nxd5 {[%clk 0:01:39]}  Na6 {[%clk 0:00:31]} 17. Nf4 {[%clk 0:01:34]}  O-O-O {[%clk 0:00:28]} 18. Rc1 {[%clk 0:00:51]}  Qa2 {[%clk 0:00:15]} 19. Qe2 {[%clk 0:00:12]}  Nc7 {[%clk 0:00:12]} 20. O-O {[%clk 0:00:12]}  g5 {[%clk 0:00:12]} 21. hxg6 {[%clk 0:00:08]}  Rxg6 {[%clk 0:00:12]} 22. Ra1 {[%clk 0:00:07]}  Qc2 {[%clk 0:00:10]} 23. Rfc1 {[%clk 0:00:05]}  Qa4 {[%clk 0:00:09]} 24. Nxg6 {[%clk 0:00:05]}  fxg6 {[%clk 0:00:10]} 25. Bxh6 {[%clk 0:00:04]}  Qc6 {[%clk 0:00:07]} 26. Bg5 {[%clk 0:00:04]}  Rh8 {[%clk 0:00:07]} 27. Bf6 {[%clk 0:00:03]}  Rh7 {[%clk 0:00:07]} 28. f3 {[%clk 0:00:03]}  Nd5 {[%clk 0:00:07]} 29. Qd2 {[%clk 0:00:02]}  f4 {[%clk 0:00:06]} 30. Qc2 {[%clk 0:00:02]}  Bf5 {[%clk 0:00:06]} 31. Qb2 {[%clk 0:00:02]}  Ne3 {[%clk 0:00:05]} 32. Re1 {[%clk 0:00:00]}  g5 {[%clk 0:00:05]} 0-1


[Site "https://www.chess.com"]

[Event "Titled Tuesday Blitz July 4 Early 2023"]
[White "Rosh Jain"]
[Black "Ljukin, Sergei"]
[WhiteFideId "25789465"]
[BlackFideId "14102200"]
[WhiteElo "2349"]
[BlackElo "2539"]
[Result "1-0"]
[Round "5"]
[TimeControl "180+2"]
[Date "2023.07.04"]
[WhiteClock "0:00:33"]
[BlackClock "0:00:05"]
[Board "132"]

1. e4 {[%clk 0:02:59]}  e6 {[%clk 0:03:00]} 2. d4 {[%clk 0:02:59]}  d5 {[%clk 0:03:00]} 3. Nc3 {[%clk 0:02:59]}  Bb4 {[%clk 0:03:00]} 4. exd5 {[%clk 0:02:59]}  exd5 {[%clk 0:03:00]} 5. Bd3 {[%clk 0:02:58]}  Nf6 {[%clk 0:03:00]} 6. Ne2 {[%clk 0:02:56]}  O-O {[%clk 0:03:01]} 7. O-O {[%clk 0:02:56]}  Bg4 {[%clk 0:03:01]} 8. Bg5 {[%clk 0:02:55]}  c6 {[%clk 0:03:00]} 9. f3 {[%clk 0:02:55]}  Bh5 {[%clk 0:03:00]} 10. Nf4 {[%clk 0:02:54]}  Bg6 {[%clk 0:03:00]} 11. Nxg6 {[%clk 0:02:54]}  hxg6 {[%clk 0:03:01]} 12. Ne2 {[%clk 0:02:46]}  Bd6 {[%clk 0:02:55]} 13. h4 {[%clk 0:02:46]}  Nbd7 {[%clk 0:02:50]} 14. c3 {[%clk 0:02:45]}  Qc7 {[%clk 0:02:49]} 15. Qc2 {[%clk 0:02:45]}  Rfe8 {[%clk 0:02:46]} 16. f4 {[%clk 0:02:41]}  Ne4 {[%clk 0:02:43]} 17. f5 {[%clk 0:02:39]}  f6 {[%clk 0:02:24]} 18. Bd2 {[%clk 0:02:36]}  Nf8 {[%clk 0:01:34]} 19. c4 {[%clk 0:02:33]}  Bg3 {[%clk 0:01:19]} 20. Rf3 {[%clk 0:02:11]}  Nxd2 {[%clk 0:00:43]} 21. Qxd2 {[%clk 0:02:05]}  Bh2+ {[%clk 0:00:31]} 22. Kh1 {[%clk 0:02:03]}  gxf5 {[%clk 0:00:30]} 23. g3 {[%clk 0:01:59]}  Rxe2 {[%clk 0:00:30]} 24. Qxe2 {[%clk 0:02:00]}  Bxg3 {[%clk 0:00:30]} 25. Rg1 {[%clk 0:01:54]}  Bxh4 {[%clk 0:00:29]} 26. Rxf5 {[%clk 0:01:53]}  Bg5 {[%clk 0:00:27]} 27. cxd5 {[%clk 0:01:43]}  cxd5 {[%clk 0:00:28]} 28. Rxd5 {[%clk 0:01:43]}  Qc6 {[%clk 0:00:11]} 29. Be4 {[%clk 0:01:37]}  Re8 {[%clk 0:00:09]} 30. Re5 {[%clk 0:00:50]}  Rxe5 {[%clk 0:00:06]} 31. dxe5 {[%clk 0:00:51]}  Qc5 {[%clk 0:00:06]} 32. exf6 {[%clk 0:00:50]}  Bxf6 {[%clk 0:00:06]} 33. Qf3 {[%clk 0:00:43]}  Nd7 {[%clk 0:00:05]} 34. Bd5+ {[%clk 0:00:42]}  Kf8 {[%clk 0:00:05]} 35. Qh5 {[%clk 0:00:34]}  Qe7 {[%clk 0:00:05]} 36. Qh8# {[%clk 0:00:33]} 1-0


[Site "https://www.chess.com"]

[Event "Titled Tuesday Blitz July 4 Early 2023"]
[White "Tikhonov, Viacheslav"]
[Black "tomobeast"]
[WhiteFideId "44196407"]
[WhiteElo "2534"]
[BlackElo "2260"]
[Result "1-0"]
[Round "5"]
[TimeControl "180+2"]
[Date "2023.07.04"]
[WhiteClock "0:00:40"]
[BlackClock "0:00:03"]
[Board "138"]

1. d4 {[%clk 0:02:57]}  Nf6 {[%clk 0:02:58]} 2. c4 {[%clk 0:02:56]}  e6 {[%clk 0:02:58]} 3. Nf3 {[%clk 0:02:56]}  b6 {[%clk 0:02:58]} 4. g3 {[%clk 0:02:56]}  Ba6 {[%clk 0:02:56]} 5. Qc2 {[%clk 0:02:56]}  Bb4+ {[%clk 0:02:53]} 6. Bd2 {[%clk 0:02:55]}  Be7 {[%clk 0:02:52]} 7. Bg2 {[%clk 0:02:54]}  Bb7 {[%clk 0:02:52]} 8. O-O {[%clk 0:02:52]}  O-O {[%clk 0:02:51]} 9. Nc3 {[%clk 0:02:49]}  c5 {[%clk 0:02:48]} 10. d5 {[%clk 0:02:49]}  exd5 {[%clk 0:02:38]} 11. Nh4 {[%clk 0:02:49]}  Ne4 {[%clk 0:02:31]} 12. Nf5 {[%clk 0:02:47]}  Nxd2 {[%clk 0:02:09]} 13. Qxd2 {[%clk 0:02:48]}  Bg5 {[%clk 0:02:06]} 14. e3 {[%clk 0:02:41]}  Nc6 {[%clk 0:01:57]} 15. Nd6 {[%clk 0:02:37]}  Ba6 {[%clk 0:01:56]} 16. Qxd5 {[%clk 0:02:21]}  Nb4 {[%clk 0:01:50]} 17. Qxa8 {[%clk 0:02:10]}  Qxa8 {[%clk 0:01:50]} 18. Bxa8 {[%clk 0:02:11]}  Rxa8 {[%clk 0:01:50]} 19. Rad1 {[%clk 0:02:01]}  Bf6 {[%clk 0:01:48]} 20. a3 {[%clk 0:01:58]}  Bxc3 {[%clk 0:01:41]} 21. bxc3 {[%clk 0:01:59]}  Nc6 {[%clk 0:01:41]} 22. Nb5 {[%clk 0:01:58]}  Ne5 {[%clk 0:01:41]} 23. a4 {[%clk 0:01:51]}  Rd8 {[%clk 0:01:30]} 24. Rd5 {[%clk 0:01:36]}  Nxc4 {[%clk 0:01:30]} 25. Rfd1 {[%clk 0:01:37]}  Bc8 {[%clk 0:00:36]} 26. Nxa7 {[%clk 0:01:34]}  Nb2 {[%clk 0:00:37]} 27. Nxc8 {[%clk 0:01:28]}  Nxd1 {[%clk 0:00:34]} 28. Nxb6 {[%clk 0:01:28]}  Nxc3 {[%clk 0:00:33]} 29. Rxc5 {[%clk 0:01:27]}  Ne4 {[%clk 0:00:27]} 30. Rc4 {[%clk 0:01:14]}  Nd2 {[%clk 0:00:22]} 31. Rc2 {[%clk 0:01:08]}  Nb3 {[%clk 0:00:22]} 32. Nxd7 {[%clk 0:01:04]}  h5 {[%clk 0:00:15]} 33. Rc7 {[%clk 0:00:59]}  Nd2 {[%clk 0:00:12]} 34. Kg2 {[%clk 0:00:58]}  Ne4 {[%clk 0:00:12]} 35. a5 {[%clk 0:00:55]}  h4 {[%clk 0:00:12]} 36. gxh4 {[%clk 0:00:54]}  Nd6 {[%clk 0:00:08]} 37. Nb6 {[%clk 0:00:49]}  Nb5 {[%clk 0:00:09]} 38. Rd7 {[%clk 0:00:48]}  Rb8 {[%clk 0:00:09]} 39. Rd5 {[%clk 0:00:47]}  Nc7 {[%clk 0:00:09]} 40. Rc5 {[%clk 0:00:47]}  Na6 {[%clk 0:00:09]} 41. Rc8+ {[%clk 0:00:47]}  Rxc8 {[%clk 0:00:10]} 42. Nxc8 {[%clk 0:00:48]}  Kf8 {[%clk 0:00:10]} 43. Kf3 {[%clk 0:00:49]}  Ke8 {[%clk 0:00:10]} 44. Ke4 {[%clk 0:00:49]}  Kd7 {[%clk 0:00:11]} 45. Nb6+ {[%clk 0:00:48]}  Kc6 {[%clk 0:00:12]} 46. h5 {[%clk 0:00:44]}  Kb5 {[%clk 0:00:12]} 47. Nc8 {[%clk 0:00:42]}  Kxa5 {[%clk 0:00:11]} 48. Nd6 {[%clk 0:00:43]}  f6 {[%clk 0:00:10]} 49. Kf5 {[%clk 0:00:43]}  Nc5 {[%clk 0:00:10]} 50. Kg6 {[%clk 0:00:43]}  Ne6 {[%clk 0:00:10]} 51. Nf5 {[%clk 0:00:42]}  Ng5 {[%clk 0:00:06]} 52. Nxg7 {[%clk 0:00:40]}  Ne4 {[%clk 0:00:07]} 53. f4 {[%clk 0:00:40]}  Nf2 {[%clk 0:00:08]} 54. h6 {[%clk 0:00:39]}  Ng4 {[%clk 0:00:08]} 55. h7 {[%clk 0:00:40]}  Nxh2 {[%clk 0:00:08]} 56. h8=Q {[%clk 0:00:40]}  Nf3 {[%clk 0:00:08]} 57. Qb8 {[%clk 0:00:41]}  Nd2 {[%clk 0:00:06]} 58. Ne6 {[%clk 0:00:41]}  Ne4 {[%clk 0:00:07]} 59. Nd4 {[%clk 0:00:40]}  Ka6 {[%clk 0:00:06]} 60. Qb5+ {[%clk 0:00:39]}  Ka7 {[%clk 0:00:03]} 61. Nc6+ {[%clk 0:00:40]} 1-0


[Site "https://www.chess.com"]

[Event "Titled Tuesday Blitz July 4 Early 2023"]
[White "Schut, Han"]
[Black "Novikov, Evgenij"]
[WhiteFideId "1005561"]
[BlackFideId "4125380"]
[WhiteElo "2296"]
[BlackElo "2533"]
[Result "1-0"]
[Round "5"]
[TimeControl "180+2"]
[Date "2023.07.04"]
[WhiteClock "0:00:08"]
[BlackClock "0:00:00"]
[Board "139"]

1. e4 {[%clk 0:03:00]}  e5 {[%clk 0:02:58]} 2. Nf3 {[%clk 0:03:00]}  Nc6 {[%clk 0:02:58]} 3. Bc4 {[%clk 0:03:01]}  Be7 {[%clk 0:02:57]} 4. d4 {[%clk 0:03:01]}  exd4 {[%clk 0:02:55]} 5. c3 {[%clk 0:02:59]}  Nf6 {[%clk 0:02:39]} 6. e5 {[%clk 0:02:48]}  Ne4 {[%clk 0:02:31]} 7. Bd5 {[%clk 0:02:37]}  Nc5 {[%clk 0:02:24]} 8. cxd4 {[%clk 0:02:34]}  Ne6 {[%clk 0:02:23]} 9. Nc3 {[%clk 0:02:17]}  O-O {[%clk 0:02:21]} 10. Be4 {[%clk 0:02:05]}  f5 {[%clk 0:01:50]} 11. Bb1 {[%clk 0:01:46]}  d5 {[%clk 0:00:52]} 12. exd6 {[%clk 0:01:37]}  Bxd6 {[%clk 0:00:52]} 13. d5 {[%clk 0:01:36]}  Nf4 {[%clk 0:00:34]} 14. dxc6 {[%clk 0:01:29]}  Nxg2+ {[%clk 0:00:21]} 15. Kf1 {[%clk 0:01:23]}  Nh4 {[%clk 0:00:17]} 16. Nxh4 {[%clk 0:01:06]}  Qxh4 {[%clk 0:00:18]} 17. cxb7 {[%clk 0:01:06]}  Bxb7 {[%clk 0:00:16]} 18. Qb3+ {[%clk 0:01:06]}  Kh8 {[%clk 0:00:12]} 19. Qxb7 {[%clk 0:01:06]}  Bc5 {[%clk 0:00:08]} 20. Qf3 {[%clk 0:00:57]}  Rad8 {[%clk 0:00:08]} 21. Be3 {[%clk 0:00:51]}  Bd6 {[%clk 0:00:06]} 22. Rg1 {[%clk 0:00:36]}  f4 {[%clk 0:00:05]} 23. Bd4 {[%clk 0:00:33]}  Rd7 {[%clk 0:00:05]} 24. Be4 {[%clk 0:00:23]}  c5 {[%clk 0:00:04]} 25. Bc6 {[%clk 0:00:15]}  cxd4 {[%clk 0:00:03]} 26. Bxd7 {[%clk 0:00:14]}  dxc3 {[%clk 0:00:03]} 27. bxc3 {[%clk 0:00:15]}  Be5 {[%clk 0:00:02]} 28. Qg4 {[%clk 0:00:13]}  Qe7 {[%clk 0:00:02]} 29. Re1 {[%clk 0:00:11]}  Qd6 {[%clk 0:00:01]} 30. Rxe5 {[%clk 0:00:07]}  Qxe5 {[%clk 0:00:00]} 31. Bf5 {[%clk 0:00:08]} 1-0


[Site "https://www.chess.com"]

[Event "Titled Tuesday Blitz July 4 Early 2023"]
[White "Sreyas Payyappat"]
[Black "Nan M K Khine Hlyan"]
[WhiteFideId "46674969"]
[BlackFideId "13002899"]
[WhiteElo "2528"]
[BlackElo "1766"]
[Result "1-0"]
[Round "5"]
[TimeControl "180+2"]
[Date "2023.07.04"]
[WhiteClock "0:01:55"]
[BlackClock "0:00:57"]
[Board "143"]

1. e4 {[%clk 0:03:00]}  e5 {[%clk 0:02:59]} 2. Nf3 {[%clk 0:03:00]}  Nc6 {[%clk 0:02:58]} 3. Bc4 {[%clk 0:03:00]}  Bc5 {[%clk 0:02:56]} 4. c3 {[%clk 0:02:59]}  Nf6 {[%clk 0:02:55]} 5. d4 {[%clk 0:02:59]}  exd4 {[%clk 0:02:55]} 6. e5 {[%clk 0:03:00]}  d5 {[%clk 0:02:54]} 7. Bb5 {[%clk 0:03:00]}  Ne4 {[%clk 0:02:49]} 8. cxd4 {[%clk 0:03:00]}  Bb4+ {[%clk 0:02:47]} 9. Bd2 {[%clk 0:02:59]}  Nxd2 {[%clk 0:02:43]} 10. Nbxd2 {[%clk 0:03:00]}  O-O {[%clk 0:02:40]} 11. O-O {[%clk 0:02:58]}  Bg4 {[%clk 0:02:37]} 12. Nb3 {[%clk 0:02:56]}  Bxf3 {[%clk 0:02:26]} 13. Qxf3 {[%clk 0:02:52]}  f6 {[%clk 0:02:17]} 14. e6 {[%clk 0:02:44]}  Qd6 {[%clk 0:01:58]} 15. a3 {[%clk 0:02:40]}  Nd8 {[%clk 0:01:25]} 16. axb4 {[%clk 0:02:23]}  Nxe6 {[%clk 0:01:25]} 17. Qc3 {[%clk 0:02:09]}  Ng5 {[%clk 0:01:19]} 18. Nc5 {[%clk 0:02:04]}  a6 {[%clk 0:01:14]} 19. Nxb7 {[%clk 0:01:57]}  Qb6 {[%clk 0:01:11]} 20. Bc6 {[%clk 0:01:56]}  Ne4 {[%clk 0:00:57]} 21. Bxd5+ {[%clk 0:01:55]} 1-0


[Site "https://www.chess.com"]